lending/lending_fUSD_20240124
["ID","MTS","AMOUNT","RATE_DAILY","PERIOD"]
[312621903,1706104814179,534.22571223,0.000229,2]
[312621904,1706104814763,2476.20957475,0.00022305,2]
[312621905,1706104822609,1228.53056958,0.00020696,2]
[312621906,1706104822936,4169.77513846,0.00017175,2]
[312621908,1706104834183,534.22571223,0.000229,2]
[312621909,1706104841507,4169.77513846,0.00017175,2]
[312621910,1706104842625,1228.53056958,0.00020695,2]
[312621912,1706104854173,534.22571223,0.000229,2]
[312621913,1706104860619,272.75345704,0.00020695,2]
[312621915,1706104863330,4169.77513846,0.00017175,2]
[312621916,1706104866727,9939.79397521,0.000229,2]
[312621918,1706104882987,4169.77513846,0.00017175,2]
[312621920,1706104902956,4169.77513846,0.00017175,2]
[312621921,1706104904689,534.22571223,0.00017175,2]
[312621923,1706104922679,534.22571223,0.00017175,2]
[312621924,1706104922947,4169.77513846,0.00012881,2]
[312621925,1706104939145,4169.77513846,0.00012881,2]
[312621927,1706104946957,534.22571223,0.00017175,2]
[312621928,1706104956956,4169.77513846,0.00012881,2]
[312621930,1706104966686,534.22571223,0.00012881,2]
[312621931,1706104974981,4169.77513846,9.661e-05,2]
[312621934,1706104986693,534.22571223,0.00012881,2]
[312621935,1706104992987,3878.9585837,9.661e-05,2]
[312621938,1706105010716,252.10994581,0.00012881,2]
[312621982,1706105431710,-942.18044949,0.00022878,2]
[312621983,1706105431720,-273.13665934,0.00022879,2]
[312621984,1706105431730,-2950.40206592,0.0002288,2]
[312621985,1706105431742,-2605.00004162,0.00022894,2]
[312621986,1706105431751,-2256.41878091,0.00022895,2]
[312621987,1706105431761,-710.98640064,0.00022895,2]
[312621988,1706105431773,-1545.43238027,0.00022895,2]
[312621989,1706105431783,-1561.40693883,0.00022899,2]
[312621990,1706105431792,-353.31925125,0.000229,2]
[312621991,1706105431801,-419.05406593,0.00022987,2]
[312621992,1706105431810,-122.78536372,0.00022996,2]
[312621993,1706105431834,-212.49863636,0.00022996,2]
[312621994,1706105431843,-155.0,0.00022996,2]
[312621995,1706105431853,-230.25096828,0.00022996,2]
[312621996,1706105431876,-324.4017795,0.00022996,2]
[312621998,1706105431947,-859.55,0.00022996,2]
[312622056,1706105437691,-700.18549787,0.00022996,2]
[312622057,1706105437704,-1016.94337793,0.00022996,2]
[312622058,1706105437894,-28286.03250545,0.00022996,2]
[312622059,1706105437904,-51.63683647,0.00022997,2]
[312622060,1706105437917,-474.59651942,0.00022997,2]
[312622061,1706105437926,-3111.57273425,0.00022997,2]
[312622062,1706105437936,-155.0,0.00022997,2]
[312622063,1706105437945,-1071.76587125,0.00022997,2]
[312622064,1706105437955,-234.27129848,0.00022997,2]
[312622065,1706105437965,-311.59150887,0.00022997,2]
[312622066,1706105437975,-1050.30585415,0.00022997,2]
[312622067,1706105437987,-296.44165808,0.00022997,2]
[312622068,1706105437997,-400.0,0.00022997,2]
[312622069,1706105438006,-155.56742176,0.00022997,2]
[312622071,1706105438016,-211.82979924,0.00022997,2]
[312622073,1706105438026,-249.97389396,0.00022997,2]
[312622076,1706105438036,-2028.07000662,0.00022997,2]
[312622078,1706105438046,-158.04475537,0.00022997,2]
[312622079,1706105438056,-155.95949004,0.00022997,2]
[312622080,1706105438065,-525.5050377,0.00022997,2]
[312622081,1706105438075,-203.9274524,0.00022997,2]
[312622082,1706105438085,-285.61791287,0.00022997,2]
[312622083,1706105438095,-155.78923615,0.00022997,2]
[312622084,1706105438104,-345.0392448,0.00022997,2]
[312622085,1706105438115,-3031.20814747,0.00022997,2]
[312622086,1706105438124,-171.69607649,0.00022997,2]
[312622087,1706105438133,-867.65374985,0.00022997,2]
[312622088,1706105438143,-6022.74137389,0.00022997,2]
[312622089,1706105438153,-1204.3280847,0.00022997,2]
[312622090,1706105438163,-473.54978766,0.00022997,2]
[312622091,1706105438172,-1065.6585444,0.00022997,2]
[312622092,1706105438183,-156.84105949,0.00022997,2]
[312622093,1706105438193,-1178.97298307,0.00022997,2]
[312622094,1706105438203,-186.04753694,0.00022997,2]
[312622095,1706105438212,-501.74130467,0.00022997,2]
[312622096,1706105438222,-281.56058951,0.00022997,2]
[312622097,1706105438232,-759.43433451,0.00022997,2]
[312622099,1706105438241,-200.57343213,0.00022997,2]
[312622101,1706105438251,-129.54276878,0.00022997,2]
[312622103,1706105438263,-25.45723122,0.00022997,2]
[312622105,1706105438273,-178.01272833,0.00022997,2]
[312622107,1706105438282,-1042.29691372,0.00022997,2]
[312622109,1706105438291,-629.27985866,0.00022997,2]
[312622111,1706105438301,-233.42707403,0.00022997,2]
[312622113,1706105438310,-157.32041113,0.00022998,2]
[312622115,1706105438319,-156.8084628,0.00022998,2]
[312622117,1706105438329,-347.15921391,0.00022998,2]
[312622119,1706105438340,-155.65924392,0.00022998,2]
[312622121,1706105438349,-542.93511757,0.00022998,2]
[312622123,1706105438359,-300.49879142,0.00022999,7]
[312622125,1706105438368,-1446.64934389,0.00022999,7]
[312622127,1706105438377,-55824.58646802,0.00023,2]
[312622129,1706105438389,-165939.15777279,0.00023,2]
[312622132,1706105438401,-141519.17612765,0.00023,2]
[312622134,1706105438410,-31657.49870227,0.00023,2]
[312622136,1706105438419,-588.64,0.00024306,2]
[312622138,1706105438429,-5097.62,0.00025522,2]
[312622140,1706105438439,-250.0,0.00025716,2]
[312622142,1706105438448,-203.35,0.00025795,2]
[312622144,1706105438458,-500.0,0.00026,2]
[312622146,1706105438467,-415.9,0.00026428,2]
[312622148,1706105438477,-588.64,0.0002657,2]
[312622150,1706105438486,-456.0,0.00026666,2]
[312622152,1706105438498,-353.31925125,0.000269,3]
[312622154,1706105438507,-250.0,0.00026989,2]
[312622156,1706105438518,-500.0,0.00026994,2]
[312622158,1706105438528,-344.12,0.000274,2]
[312622160,1706105438537,-344.12,0.000274,2]
[312622162,1706105438547,-500.0,0.00027782,2]
[312622164,1706105438557,-331.93,0.00027911,2]
[312622165,1706105438567,-2669.65,0.00028249,2]
[312622166,1706105438576,-588.64,0.00028834,2]
[312622167,1706105438585,-331.93,0.00028944,2]
[312622168,1706105438595,-9443.0,0.000293,3]
[312622169,1706105438604,-331.93,0.00029977,2]
[312622170,1706105438613,-456.0,0.0003,2]
[312622171,1706105438622,-155.0,0.0003,2]
[312622172,1706105438631,-960.43,0.0003,2]
[312622173,1706105438640,-353.31925125,0.000309,5]
[312622174,1706105438649,-331.93,0.0003101,2]
[312622175,1706105438658,-588.64,0.00031098,2]
[312622176,1706105438668,-180.0,0.00031644,2]
[312622177,1706105438676,-331.93,0.00032042,2]
[312622178,1706105438685,-544.0,0.00032854,2]
[312622179,1706105438695,-329.57,0.00032877,15]
[312622181,1706105438704,-4000.01574894,0.00033,2]
[312622183,1706105438713,-2265.67563007,0.00033333,14]
[312622185,1706105438722,-456.0,0.00033333,2]
[312622187,1706105438731,-588.64,0.00033362,2]
[312622189,1706105438741,-457.3,0.000335,2]
[312622191,1706105438750,-457.3,0.000335,2]
[312622193,1706105438760,-457.3,0.000335,2]
[312622195,1706105438769,-457.3,0.000335,2]
[312622197,1706105438778,-457.3,0.000335,2]
[312622199,1706105438789,-457.3,0.000335,2]
[312622201,1706105438798,-457.3,0.000335,2]
[312622203,1706105438807,-457.3,0.000335,2]
[312622205,1706105438816,-457.3,0.000335,2]
[312622207,1706105438825,-457.3,0.000335,2]
[312622209,1706105438834,-457.3,0.000335,2]
[312622211,1706105438844,-457.3,0.000335,2]
[312622213,1706105438853,-457.3,0.000335,2]
[312622215,1706105438863,-457.3,0.000335,2]
[312622217,1706105438872,-457.3,0.000335,2]
[312622219,1706105438881,-457.3,0.000335,2]
[312622221,1706105438891,-457.3,0.000335,2]
[312622223,1706105438901,-457.3,0.000335,2]
[312622225,1706105438910,-457.3,0.000335,2]
[312622227,1706105438919,-457.3,0.000335,2]
[312622229,1706105438929,-1000.0,0.00034,4]
[312622231,1706105438938,-1038.56,0.00034197,2]
[312622233,1706105438948,-213.321367,0.00034261,2]
[312622235,1706105438957,-201.205508,0.00034261,2]
[312622237,1706105438966,-1000.0,0.000345,2]
[312622239,1706105438976,-353.31925125,0.000349,7]
[312622242,1706105438989,-582.93697229,0.000349,2]
[312622244,1706105438998,-155.0,0.0003493,2]
[312622246,1706105439008,-155.0,0.0003493,2]
[312622248,1706105439017,-2500.0,0.00035,2]
[312622250,1706105439027,-300.0,0.00035,7]
[312622252,1706105439036,-1343.0,0.00035201,2]
[312622254,1706105439045,-588.64,0.00035626,2]
[312622256,1706105439054,-155.05332536,0.0003569,8]
[312622258,1706105439065,-500.0,0.0003569,8]
[312622260,1706105439074,-650.10828913,0.0003569,8]
[312622262,1706105439083,-165.35792676,0.0003569,8]
[312622264,1706105439092,-80659.42937324,0.0003593,2]
[312622266,1706105439102,-154.28,0.00036156,2]
[312622268,1706105439111,-344.12,0.00036268,2]
[312622270,1706105439121,-209.0,0.00036278,2]
[312622272,1706105439130,-294.087,0.00036278,2]
[312622274,1706105439139,-6702.559,0.00036278,2]
[312622276,1706105439149,-2268.0,0.00036278,2]
[312622278,1706105439158,-7333.0,0.00036278,2]
[312622280,1706105439167,-3028.088,0.00036278,2]
[312622282,1706105439176,-19732.0,0.00036278,2]
[312622284,1706105439185,-1031.0,0.00036278,2]
[312622286,1706105439195,-15710.51283778,0.00036287,2]
[312622288,1706105439204,-3422.38200908,0.00036288,5]
[312622290,1706105439214,-200.0,0.00036288,2]
[312622292,1706105439223,-2873.97066,0.00036288,2]
[312622294,1706105439232,-168.127,0.00036288,2]
[312622296,1706105439242,-150.589,0.00036288,2]
[312622298,1706105439252,-150.0,0.00036288,2]
[312622299,1706105439261,-200.0,0.00036288,2]
[312622300,1706105439271,-155.0,0.000363,2]
[312622301,1706105439280,-4977.88342691,0.0003649,10]
[312622302,1706105439290,-329.57,0.00036613,15]
[312622303,1706105439299,-456.0,0.00036666,2]
[312622304,1706105439309,-165.33764307,0.00036861,11]
[312622305,1706105439318,-800.0,0.000369,13]
[312622306,1706105439327,-544.0,0.0003696,2]
[312622307,1706105439337,-50000.0,0.00037,17]
[312622308,1706105439346,-1000.0,0.000373,2]
[312622309,1706105439355,-4913.83838509,0.0003751,2]
[312622310,1706105439364,-11414.3614,0.00037599,2]
[312622311,1706105439374,-155.0,0.0003767,2]
[312622312,1706105439383,-344.12,0.00037689,2]
[312622313,1706105439393,-793.88553473,0.00037697,14]
[312622314,1706105439402,-428.43020465,0.00037697,2]
[312622315,1706105439411,-229.5508507,0.00037698,2]
[312622316,1706105439421,-294.32,0.00037698,2]
[312622317,1706105439430,-294.32,0.00037698,2]
[312622318,1706105439440,-36.36284971,0.00037698,2]
[312622324,1706105440402,-156.48077971,0.00022795,2]
[312622325,1706105440412,-150.0,0.00036593,2]
[312622326,1706105440421,-257.95715029,0.00037698,2]
[312622327,1706105440430,-294.32,0.00037698,2]
[312622328,1706105440440,-294.32,0.00037698,2]
[312622329,1706105440449,-294.32,0.00037698,2]
[312622330,1706105440459,-9.33845818,0.00037698,2]
[312622359,1706105441758,-284.98154182,0.00037698,2]
[312622360,1706105441767,-294.32,0.00037698,2]
[312622361,1706105441777,-294.32,0.00037698,2]
[312622362,1706105441787,-294.32,0.00037698,2]
[312622363,1706105441797,-82484.38604895,0.00037699,2]
[312622364,1706105441806,-2000.0,0.00037699,2]
[312622365,1706105441816,-424.54067247,0.00037836,11]
[312622366,1706105441825,-588.64,0.0003789,2]
[312622367,1706105441835,-344.12,0.0003789,2]
[312622368,1706105441844,-165.33764306,0.00037899,12]
[312622369,1706105441854,-1600.0,0.000379,13]
[312622370,1706105441864,-41545.32760913,0.000379,2]
[312622371,1706105441875,-699.65573577,0.000379,2]
[312622372,1706105441886,-1942.37721319,0.000379,2]
[312622373,1706105441898,-289.96267146,0.000379,2]
[312622374,1706105441909,-1424.40289611,0.000379,2]
[312622375,1706105441952,-1313.643421,0.000379,2]
[312622376,1706105441963,-834.28714186,0.000379,2]
[312622377,1706105441975,-1075.51440885,0.000379,2]
[312622378,1706105441989,-27613.26897096,0.000379,2]
[312622405,1706105442771,-2156.44850864,0.000379,2]
[312622416,1706105442866,-1289.74609169,0.000379,2]
[312622418,1706105442902,-19147.77553553,0.000379,2]
[312622419,1706105442944,-5383.05442372,0.000379,2]
[312622420,1706105442955,-10481.2457,0.000379,2]
[312622421,1706105443056,-1334.40390831,0.000379,2]
[312622591,1706105449917,-156.48077964,0.00024013,2]
[312622592,1706105449927,-399.44422036,0.00037697,4]
[312622593,1706105449943,-2541.59122729,0.00037697,4]
[312622594,1706105449953,-418.14121048,0.00037697,4]
[312622595,1706105449963,-5048.46756223,0.000379,2]
[312622596,1706105449975,-5646.12370192,0.000379,2]
[312622614,1706106633568,-33518.83741911,0.00022899,2]
[312622615,1706106633578,-156.42383836,0.00023912,2]
[312622616,1706106633588,-163.2483036,0.00024012,2]
[312622617,1706106633597,-156.42383833,0.00025197,2]
[312622618,1706106633607,-500.0,0.00026481,2]
[312622619,1706106633617,-156.42383833,0.00026482,2]
[312622620,1706106633626,-156.42383833,0.00027767,2]
[312622621,1706106633635,-156.42383833,0.00029051,2]
[312622622,1706106633645,-3140.0,0.0003,3]
[312622623,1706106633654,-8499.0,0.0003,3]
[312622624,1706106633664,-155.0,0.0003,2]
[312622625,1706106633674,-156.42383833,0.00030336,2]
[312622626,1706106633683,-156.42383833,0.00031621,2]
[312622627,1706106633693,-176.37,0.00031899,2]
[312622628,1706106633704,-155.0,0.000319,2]
[312622629,1706106633714,-795.31870801,0.000329,14]
[312622630,1706106633724,-1000.0,0.000329,2]
[312622631,1706106633733,-156.42383833,0.00032906,2]
[312622633,1706106633742,-155.0,0.0003327,2]
[312622635,1706106633753,-420.77,0.00033419,2]
[312622637,1706106633762,-332.06,0.000338,2]
[312622639,1706106633771,-332.06,0.000338,2]
[312622641,1706106633780,-332.06,0.000338,2]
[312622643,1706106633789,-332.06,0.000338,2]
[312622645,1706106633798,-332.06,0.000338,2]
[312622647,1706106633807,-332.06,0.000338,2]
[312622649,1706106633816,-332.06,0.000338,2]
[312622651,1706106633826,-332.06,0.000338,2]
[312622653,1706106633835,-332.06,0.000338,2]
[312622655,1706106633844,-332.06,0.000338,2]
[312622657,1706106633854,-332.06,0.000338,2]
[312622659,1706106633863,-332.06,0.000338,2]
[312622661,1706106633872,-332.06,0.000338,2]
[312622663,1706106633881,-332.06,0.000338,2]
[312622665,1706106633891,-332.06,0.000338,2]
[312622667,1706106633900,-332.06,0.000338,2]
[312622669,1706106633909,-332.06,0.000338,2]
[312622671,1706106633918,-332.06,0.000338,2]
[312622673,1706106633927,-332.06,0.000338,2]
[312622675,1706106633936,-332.06,0.000338,2]
[312622677,1706106633947,-1000.0,0.0003419,4]
[312622679,1706106633957,-156.42383833,0.00034191,2]
[312622681,1706106633967,-177.69,0.00034466,2]
[312622683,1706106633976,-152.0,0.0003452,2]
[312622685,1706106633986,-155.0,0.0003464,2]
[312622687,1706106633995,-2224.7,0.00034856,2]
[312622689,1706106634004,-250.0,0.0003489,2]
[312622691,1706106634013,-2500.0,0.0003503,2]
[312622693,1706106634022,-908.8,0.00035031,2]
[312622695,1706106634032,-205.0,0.00035268,2]
[312622697,1706106634042,-164.42,0.00035307,2]
[312622699,1706106634051,-156.42383833,0.00035476,2]
[312622701,1706106634060,-274.64,0.0003549,15]
[312622703,1706106634069,-316.14,0.00035519,2]
[312622705,1706106634080,-1000.0,0.000356,2]
[312622707,1706106634089,-420.77,0.00035683,2]
[312622709,1706106634100,-9963.6778898,0.0003569,8]
[312622711,1706106634109,-2466.01027773,0.0003569,8]
[312622713,1706106634118,-160.90180156,0.0003569,8]
[312622715,1706106634127,-165.35792676,0.0003569,8]
[312622717,1706106634136,-157.69475738,0.0003601,2]
[312622719,1706106634146,-177.69,0.0003611,2]
[312622721,1706106634156,-865.46,0.00036216,2]
[312622723,1706106634165,-156.42383833,0.00036761,2]
[312622725,1706106634174,-239.0,0.00036763,2]
[312622727,1706106634183,-714.2358,0.000368,2]
[312622730,1706106634193,-316.14,0.00036833,2]
[312622732,1706106634205,-385.6502922,0.00036899,4]
[312622733,1706106634217,-600.0,0.0003699,2]
[312622735,1706106634227,-483.08256668,0.00036999,4]
[312622738,1706106634236,-50000.0,0.00037,17]
[312622740,1706106634246,-164.42,0.00037147,2]
[312622741,1706106634254,-205.0,0.00037329,6]
[312622743,1706106634263,-200.0,0.00037497,5]
[312622745,1706106634273,-1230.952187,0.0003753,2]
[312622747,1706106634282,-600.0,0.00037688,2]
[312622749,1706106634291,-2836.12184631,0.00037696,4]
[312622751,1706106634301,-1927.55263986,0.00037698,14]
[312622754,1706106634311,-1679.43238896,0.00037698,5]
[312622756,1706106634321,-150.77273825,0.0003771,2]
[312622758,1706106634330,-177.69,0.00037754,2]
[312622760,1706106634340,-19393.709,0.00037778,2]
[312622762,1706106634350,-1025.0,0.00037778,2]
[312622763,1706106634362,-209.0,0.00037778,2]
[312622765,1706106634372,-8495.0721,0.000378,2]
[312622767,1706106634381,-582.93697229,0.0003781,2]
[312622769,1706106634392,-176.65962566,0.0003781,8]
[312622771,1706106634402,-180.0,0.00037826,2]
[312622773,1706106634411,-163.102421,0.00037836,2]
[312622775,1706106634421,-600.0,0.00037888,2]
[312622777,1706106634430,-600.0,0.0003789,2]
[312622780,1706106634441,-404.9391978,0.00037898,2]
[312622781,1706106634455,-544.1625319,0.00037898,30]
[312622783,1706106634465,-35133.73908361,0.00037898,2]
[312622785,1706106634476,-1159.29417064,0.00037898,4]
[312622790,1706106635070,-1158.07324981,0.00037898,4]
[312622791,1706106635079,-348.434193,0.00037899,4]
[312622792,1706106635089,-150.01,0.00037899,2]
[312622793,1706106635098,-225.47056187,0.00037899,2]
[312622794,1706106635129,-263.64364043,0.00037899,2]
[312622795,1706106635141,-1408.29903671,0.00037899,2]
[312622796,1706106635153,-439.62247958,0.00037899,2]
[312622797,1706106635172,-963.27127077,0.00037899,2]
[312622798,1706106635181,-200.0,0.000379,2]
[312622799,1706106635190,-170.8245059,0.000379,7]
[312622800,1706106635200,-2394.97555,0.000379,2]
[312622801,1706106635209,-700.0,0.000379,13]
[312622802,1706106635218,-233.9,0.000379,2]
[312622803,1706106635228,-233.9,0.000379,2]
[312622804,1706106635237,-600.0,0.000379,2]
[312622805,1706106635246,-3008.8079034,0.0003791,2]
[312622806,1706106635255,-25282.2666326,0.0003791,2]
[312622807,1706106635264,-16391.59554802,0.0003791,2]
[312622808,1706106635281,-399.97836,0.0003791,2]
[312622809,1706106635308,-1690.5686565,0.0003791,2]
[312622810,1706106635319,-1996.1,0.0003791,2]
[312622819,1706106637910,-1997.2320567,0.0003791,2]
[312622820,1706106637985,-31900.33689381,0.0003791,2]
[312622821,1706106638002,-3290.64555306,0.0003791,2]
[312622822,1706106638014,-677.48546916,0.0003791,2]
[312622823,1706106638059,-2492.19050604,0.0003791,2]
[312622834,1706106638818,-430.0,0.0003791,2]
[312622856,1706106641229,-150.01,0.00037899,2]
[312622857,1706106641239,-3300.30698936,0.00037899,2]
[312622858,1706106641249,-70308.98991086,0.0003791,2]
[312622859,1706106641261,-1203.812,0.0003791,2]
[312622870,1706106642953,-187.12,0.000379,2]
[312622871,1706106642964,-187.12,0.000379,2]
[312622872,1706106642974,-129.91977998,0.0003791,2]
[312622873,1706106643088,-437.51162563,0.0003791,2]
[312622874,1706106643116,-399.15,0.0003791,2]
[312622875,1706106643128,-380.16156235,0.0003791,2]
[312622876,1706106643178,-427.18428536,0.0003791,2]
[312622877,1706106643189,-537.88,0.0003791,2]
[312622878,1706106643201,-768.44720034,0.0003791,2]
[312622879,1706106643231,-4222.27790851,0.0003791,2]
[312622953,1706106646001,-151.46361756,0.00036014,2]
[312622954,1706106646011,-300.02,0.00037909,2]
[312622955,1706106646020,-1144.57,0.00037909,2]
[312622956,1706106646030,-2302.0126202,0.00037909,2]
[312622957,1706106646039,-500.0,0.00037909,2]
[312622958,1706106646049,-208177.71616238,0.0003791,2]
[312622959,1706106646059,-8502.0000465,0.0003791,2]
[312622960,1706106646068,-177.69,0.00037933,2]
[312622961,1706106646078,-420.77,0.00037947,2]
[312622962,1706106646088,-187.12,0.0003799,2]
[312622963,1706106646097,-327.02,0.00037999,2]
[312622964,1706106646106,-27500.77620627,0.00038,18]
[312622965,1706106646143,-12008.3688,0.00038,18]
[312622966,1706106646167,-770.37157439,0.00038,18]
[312622967,1706106646199,-557.625,0.00038,18]
[312622968,1706106646215,-7686.11287163,0.00038,18]
[312622969,1706106646238,-2455.04708258,0.00038,18]
[312623005,1706107694172,202.35008549,0.00010037,2]
[312623017,1706107832133,-450.0,0.00025,3]
[312623018,1706107832143,-1003.23766428,0.00026,2]
[312623019,1706107832155,-269.8558068,0.00026,2]
[312623020,1706107832168,-51.58961503,0.00026,2]
[312623021,1706107832178,-371.20908547,0.00026,2]
[312623022,1706107832321,-128.79091453,0.00026,2]
[312623023,1706107832332,-500.0,0.00027,3]
[312623024,1706107832341,-76.30745278,0.00027397,2]
[312623025,1706107832413,-95.01254722,0.00027397,2]
[312623026,1706107832423,-500.0,0.0003,2]
[312623027,1706107832433,-155.0,0.0003,2]
[312623029,1706107832442,-171.32,0.00030137,2]
[312623031,1706107832451,-121.02951423,0.00031,2]
[312623035,1706107832485,-519.30124229,0.00031,2]
[312623038,1706107832505,-629.86,0.00031,2]
[312623041,1706107832518,-1729.80924348,0.00031,2]
[312623043,1706107832527,-205.0,0.00032268,2]
[312623045,1706107832537,-150.0,0.00032332,3]
[312623046,1706107832547,-451.02,0.00032333,2]
[312623047,1706107832556,-3500.39,0.00032333,2]
[312623048,1706107832566,-197.86248298,0.00032612,2]
[312623051,1706107839304,-156.42383833,0.000299,2]
[312623052,1706107839314,-39.41751702,0.00032612,2]
[312623053,1706107839323,-162.17062433,0.00032877,2]
[312623054,1706107839334,-9.14937567,0.00032877,2]
[312623055,1706107839343,-461.86949037,0.00032877,2]
[312623056,1706107839354,-1676.13050963,0.00032877,2]
[312623057,1706107839364,-1000.0,0.000334,2]
[312623058,1706107839373,-939.2,0.00033556,2]
[312623059,1706107839382,-250.0,0.00033589,2]
[312623060,1706107839392,-499.99,0.000338,2]
[312623061,1706107839401,-158.25,0.000338,2]
[312623062,1706107839410,-152.8,0.000338,2]
[312623063,1706107839419,-296.51,0.000338,2]
[312623064,1706107839428,-296.51,0.000338,2]
[312623065,1706107839438,-296.51,0.000338,2]
[312623066,1706107839447,-296.51,0.000338,2]
[312623067,1706107839456,-296.51,0.000338,2]
[312623068,1706107839466,-296.51,0.000338,2]
[312623069,1706107839476,-296.51,0.000338,2]
[312623070,1706107839485,-296.51,0.000338,2]
[312623071,1706107839494,-296.51,0.000338,2]
[312623072,1706107839503,-296.51,0.000338,2]
[312623073,1706107839512,-296.51,0.000338,2]
[312623074,1706107839520,-296.51,0.000338,2]
[312623075,1706107839529,-296.51,0.000338,2]
[312623076,1706107839538,-296.51,0.000338,2]
[312623077,1706107839547,-296.51,0.000338,2]
[312623078,1706107839556,-296.51,0.000338,2]
[312623079,1706107839565,-296.51,0.000338,2]
[312623080,1706107839574,-296.51,0.000338,2]
[312623081,1706107839583,-296.51,0.000338,2]
[312623082,1706107839592,-296.51,0.000338,2]
[312623083,1706107839601,-655.52,0.00033802,2]
[312623084,1706107839611,-250.0,0.00033847,2]
[312623085,1706107839620,-177.69,0.000339,2]
[312623086,1706107839629,-1000.0,0.00034,4]
[312623087,1706107839638,-2321.47,0.00034,2]
[312623088,1706107839647,-166.67,0.00034056,2]
[312623089,1706107839656,-619.69,0.00034137,2]
[312623091,1706107839665,-251.75,0.00034173,15]
[312623093,1706107839674,-152.17,0.00034251,2]
[312623095,1706107839683,-2000.0,0.00034258,2]
[312623097,1706107839694,-152.0,0.00034296,2]
[312623099,1706107839703,-205.0,0.00034579,6]
[312623100,1706107839713,-451.02,0.00034597,2]
[312623101,1706107839722,-155.0,0.0003469,2]
[312623102,1706107839731,-152.17,0.00034697,2]
[312623103,1706107839742,-3001.49,0.00034875,2]
[312623104,1706107839751,-2500.0,0.00035,2]
[312623105,1706107839759,-152.17,0.00035143,2]
[312623106,1706107839769,-166.05,0.00035359,2]
[312623107,1706107839778,-619.69,0.000354,2]
[312623108,1706107839787,-152.17,0.00035589,2]
[312623109,1706107839796,-1000.0,0.00035689,2]
[312623110,1706107839805,-8152.10009166,0.0003569,8]
[312623111,1706107839814,-3896.09782261,0.0003569,8]
[312623112,1706107839825,-187.79446648,0.0003569,8]
[312623114,1706107839835,-2314.4807,0.00035899,2]
[312623115,1706107839844,-1228.24095519,0.00035899,2]
[312623117,1706107839854,-582.93697229,0.000359,2]
[312623118,1706107839862,-191.59750761,0.000359,2]
[312623119,1706107839871,-150.77273825,0.000359,2]
[312623120,1706107839880,-11171.10468059,0.00035989,2]
[312623121,1706107839888,-163.73,0.00035989,2]
[312623122,1706107839897,-163.73,0.00035989,2]
[312623123,1706107839906,-1144.59,0.00035998,2]
[312623124,1706107839915,-1144.59,0.00035998,2]
[312623125,1706107839924,-981.06,0.00035998,2]
[312623126,1706107839933,-981.06,0.00035998,2]
[312623127,1706107839944,-981.06,0.00035998,2]
[312623128,1706107839952,-981.06,0.00035998,2]
[312623129,1706107839961,-981.06,0.00035998,2]
[312623130,1706107839970,-981.06,0.00035998,2]
[312623131,1706107839978,-150.0,0.00035998,2]
[312623132,1706107839987,-565404.02671985,0.00035999,2]
[312623133,1706107839997,-298.08959021,0.00036,4]
[312623134,1706107840006,-1554.02977912,0.00036013,4]
[312623135,1706107840015,-152.17,0.00036035,2]
[312623136,1706107840024,-155.0,0.0003606,2]
[312623137,1706107840033,-151.46361756,0.00036099,2]
[312623138,1706107840042,-1000.0,0.000362,2]
[312623139,1706107840051,-150.77273825,0.00036572,2]